[Event "Azerbaijan Championship 2021"]
[Site "Nakhchivan"]
[Date "2021.05.07"]
[Round "4.5"]
[White "Suleymanli, Aydin"]
[Black "Muradli, Mahammad"]
[Result "1/2-1/2"]
[ECO "E21"]
[WhiteElo "2520"]
[BlackElo "2449"]
[Annotator "ChessBase"]
[PlyCount "100"]
[EventDate "2021.05.04"]
[EventType "tourn"]
[EventCountry "AZE"]
[SourceTitle "playchess.com"]
[Source "ChessBase"]
[SourceQuality "1"]
[TimeControl "40/5400+30:1800+30"]

1. d4 {[%emt 0:00:00]} Nf6 {[%emt 0:03:31]} 2. c4 {[%emt 0:00:00]} e6 {[%emt 0:00:04]} 3. Nc3 {[%emt 0:00:00]} Bb4 {[%emt 0:00:04]} 4. Nf3 {[%emt 0:02:08]} b6 {[%emt 0:01:14]} 5. g3 {[%emt 0:00:28]} Bxc3+ {[%emt 0:00:09]} 6. bxc3 {[%emt 0:00:02]} Bb7 {[%emt 0:00:11]} 7. Bg2 {[%emt 0:00:05]} d6 {[%emt 0:00:24]} 8. O-O {[%emt 0:00:24]} O-O {[%emt 0:00:27]} 9. Re1 {[%emt 0:00:46]} h6 {[%emt 0:06:12]} 10. Bh3 {[%emt 0:06:23]} Re8 {[%emt 0:09:39]} 11. Qc2 {[%emt 0:09:26]} e5 {[%emt 0:04:57]} 12. Nd2 {[%emt 0:03:44]} Nc6 {[%emt 0:04:07]} 13. Bb2 {[%emt 0:00:09]} e4 {[%emt 0:06:57]} 14. e3 {[%emt 0:13:42]} Na5 {[%emt 0:03:42]} 15. c5 {[%emt 0:02:25]} dxc5 {[%emt 0:06:06]} 16. dxc5 {[%emt 0:00:37]} Qd3 {[%emt 0:00:08]} 17. Qxd3 {[%emt 0:03:47]} exd3 {[%emt 0:00:21]} 18. f3 {[%emt 0:03:37]} Ba6 {[%emt 0:07:54]} 19. e4 {[%emt 0:12:39]} Nc4 {[%emt 0:11:19]} 20. Nxc4 {[%emt 0:04:05]} Bxc4 {[%emt 0:00:02]} 21. c6 {[%emt 0:05:24]} Rad8 {[%emt 0:04:56]} 22. Kf2 {[%emt 0:10:13]} Re5 {[%emt 0:00:18]} 23. Bf1 {[%emt 0:01:01]} Rc5 {[%emt 0:04:13]} 24. Rad1 {[%emt 0:03:32]} Rxc6 {[%emt 0:01:15]} 25. Re3 {[%emt 0:01:38]} Nd7 {[%emt 0:01:03]} 26. e5 {[%emt 0:01:35]} Nc5 {[%emt 0:01:27]} 27. Ba3 {[%emt 0:00:17]} Na4 {[%emt 0:00:59]} 28. Bxd3 {[%emt 0:00:20]} Rxd3 {[%emt 0:00:34]} 29. Rdxd3 {[%emt 0:00:02]} Bxd3 {[%emt 0:00:01]} 30. Rxd3 {[%emt 0:00:00]} Rxc3 {[%emt 0:00:22]} 31. Rd8+ {[%emt 0:00:31]} Kh7 {[%emt 0:00:06]} 32. Bf8 {[%emt 0:00:41]} Rc2+ {[%emt 0:07:45]} 33. Ke3 {[%emt 0:01:00]} Rxa2 {[%emt 0:00:20]} 34. f4 {[%emt 0:04:40]} Rc2 {[%emt 0:04:31]} 35. Rd7 {[%emt 0:01:45]} Kg8 {[%emt 0:00:41]} 36. Rd8 {[%emt 0:00:01]} Rc6 {[%emt 0:03:38]} 37. f5 {[%emt 0:00:54]} Nc3 {[%emt 0:03:10]} 38. Kd3 {[%emt 0:01:26]} Nb5 {[%emt 0:01:27]} 39. Be7+ {[%emt 0:01:00]} Kh7 {[%emt 0:00:01]} 40. Rf8 {[%emt 0:00:00]} Rc3+ {[%emt 0:00:00]} 41. Kd2 {[%emt 0:01:51]} Rf3 {[%emt 0:06:32]} 42. Rxf7 {[%emt 0:00:43]} Nd4 {[%emt 0:00:56]} 43. g4 {[%emt 0:00:10]} h5 {[%emt 0:05:33]} 44. Bf6 {[%emt 0:12:55]} hxg4 {[%emt 0:01:47]} 45. Rxg7+ {[%emt 0:00:27]} Kh6 {[%emt 0:00:01]} 46. Rg6+ {[%emt 0:05:02]} Kh5 {[%emt 0:01:14]} 47. Rg5+ {[%emt 0:00:54]} Kh6 {[%emt 0:00:02]} 48. Rg6+ {[%emt 0:00:40]} Kh5 {[%emt 0:00:02]} 49. Rg5+ {[%emt 0:00:09]} Kh6 {[%emt 0:00:01]} 50. Rg6+ {[%emt 0:00:17]} Kh5 {[%emt 0:00:01]} 1/2-1/2

[Event "Azerbaijan Championship 2021"]
[Site "Nakhchivan"]
[Date "2021.05.07"]
[Round "4.6"]
[White "Asadli, Vugar"]
[Black "Sevdimaliyev, Urfan"]
[Result "1-0"]
[ECO "C10"]
[WhiteElo "2572"]
[BlackElo "2369"]
[Annotator "ChessBase"]
[PlyCount "41"]
[EventDate "2021.05.04"]
[EventType "tourn"]
[EventCountry "AZE"]
[SourceTitle "playchess.com"]
[Source "ChessBase"]
[SourceQuality "1"]
[TimeControl "40/5400+30:1800+30"]

1. e4 {[%emt 0:00:00]} e6 {[%emt 0:00:00]} 2. d4 {[%emt 0:04:50]} d5 {[%emt 0:00:00]} 3. Nc3 {[%emt 0:00:43]} dxe4 {[%emt 0:02:14]} 4. Nxe4 {[%emt 0:00:16]} Nd7 {[%emt 0:00:04]} 5. Nf3 {[%emt 0:02:02]} Ngf6 {[%emt 0:00:06]} 6. Nxf6+ {[%emt 0:00:17]} Nxf6 {[%emt 0:00:07]} 7. Be3 {[%emt 0:01:21]} Nd5 {[%emt 0:02:18]} 8. Bd3 {[%emt 0:03:51]} c5 {[%emt 0:10:29]} 9. O-O {[%emt 0:10:15]} Bd6 {[%emt 0:09:01]} 10. dxc5 {[%emt 0:04:06]} Nxe3 {[%emt 0:13:07]} 11. fxe3 {[%emt 0:02:25]} Bxc5 {[%emt 0:05:21]} 12. Ne5 {[%emt 0:01:23]} Bxe3+ {[%emt 0:04:12]} 13. Kh1 {[%emt 0:00:15]} Qd5 {[%emt 0:04:30]} 14. Nxf7 {[%emt 0:14:30]} O-O {[%emt 0:06:03]} 15. c4 {[%emt 0:00:09]} Qc5 {[%emt 0:13:48]} 16. b4 {[%emt 0:00:28]} Qe7 {[%emt 0:01:13]} 17. Qh5 {[%emt 0:00:26]} Bh6 {[%emt 0:02:29]} 18. Nxh6+ {[%emt 0:00:29]} gxh6 {[%emt 0:00:13]} 19. Rxf8+ {[%emt 0:00:03]} Qxf8 {[%emt 0:00:29]} 20. Rf1 {[%emt 0:00:03]} Qe7 {[%emt 0:01:19]} 21. Bxh7+ {[%emt 0:00:06]} 1-0

[Event "Azerbaijan Championship 2021"]
[Site "Nakhchivan"]
[Date "2021.05.08"]
[Round "5.4"]
[White "Gadimbayli, Abdulla"]
[Black "Safarli, Eltaj"]
[Result "1/2-1/2"]
[ECO "B51"]
[WhiteElo "2470"]
[BlackElo "2598"]
[Annotator "ChessBase"]
[PlyCount "71"]
[EventDate "2021.05.04"]
[EventType "tourn"]
[EventCountry "AZE"]
[SourceTitle "playchess.com"]
[Source "ChessBase"]
[SourceQuality "1"]
[TimeControl "40/5400+30:1800+30"]

1. e4 {[%emt 0:01:05]} c5 {[%emt 0:00:00]} 2. Nf3 {[%emt 0:00:10]} d6 {[%emt 0:00:00]} 3. Bb5+ {[%emt 0:00:25]} Nd7 {[%emt 0:00:13]} 4. O-O {[%emt 0:01:08]} a6 {[%emt 0:01:18]} 5. Be2 {[%emt 0:00:30]} Ngf6 {[%emt 0:00:33]} 6. d3 {[%emt 0:00:25]} e6 {[%emt 0:00:39]} 7. a4 {[%emt 0:00:44]} b6 {[%emt 0:00:37]} 8. Na3 {[%emt 0:02:14]} Bb7 {[%emt 0:01:23]} 9. Bf4 {[%emt 0:05:27]} Be7 {[%emt 0:02:57]} 10. Nc4 {[%emt 0:02:39]} e5 {[%emt 0:02:32]} 11. Bg3 {[%emt 0:01:01]} O-O {[%emt 0:05:44]} 12. Nfd2 {[%emt 0:19:36]} Re8 {[%emt 0:03:09]} 13. Ne3 {[%emt 0:06:23]} Nf8 {[%emt 0:14:48]} 14. Nf5 {[%emt 0:18:31]} Ne6 {[%emt 0:00:25]} 15. Nxe7+ {[%emt 0:00:20]} Qxe7 {[%emt 0:03:06]} 16. Nc4 {[%emt 0:02:35]} b5 {[%emt 0:01:06]} 17. Ne3 {[%emt 0:02:53]} Nd4 {[%emt 0:02:17]} 18. c3 {[%emt 0:04:09]} Nxe2+ {[%emt 0:00:54]} 19. Qxe2 {[%emt 0:00:10]} Qe6 {[%emt 0:03:27]} 20. Bh4 {[%emt 0:06:53]} Nd7 {[%emt 0:01:59]} 21. Qf3 {[%emt 0:08:43]} c4 {[%emt 0:09:27]} 22. axb5 {[%emt 0:08:07]} axb5 {[%emt 0:00:23]} 23. dxc4 {[%emt 0:00:05]} bxc4 {[%emt 0:00:46]} 24. Qf5 {[%emt 0:00:09]} d5 {[%emt 0:18:50]} 25. Rad1 {[%emt 0:03:35]} Nb6 {[%emt 0:04:14]} 26. Qxe6 {[%emt 0:00:29]} fxe6 {[%emt 0:00:05]} 27. Bg3 {[%emt 0:00:11]} d4 {[%emt 0:02:44]} 28. cxd4 {[%emt 0:01:00]} Bxe4 {[%emt 0:00:06]} 29. Bxe5 {[%emt 0:01:17]} Ra2 {[%emt 0:00:09]} 30. Rfe1 {[%emt 0:01:12]} Bg6 {[%emt 0:05:00]} 31. Rc1 {[%emt 0:02:35]} Bd3 {[%emt 0:05:11]} 32. Bc7 {[%emt 0:00:27]} Na8 {[%emt 0:06:30]} 33. Be5 {[%emt 0:00:12]} Nb6 {[%emt 0:00:07]} 34. Bc7 {[%emt 0:00:04]} Na8 {[%emt 0:00:04]} 35. Be5 {[%emt 0:01:30]} Nb6 {[%emt 0:00:03]} 36. Bc7 {[%emt 0:00:05]} 1/2-1/2

[Event "Azerbaijan Championship 2021"]
[Site "Nakhchivan"]
[Date "2021.05.08"]
[Round "5.5"]
[White "Garayev, Kanan"]
[Black "Asadli, Vugar"]
[Result "0-1"]
[ECO "D12"]
[WhiteElo "2331"]
[BlackElo "2572"]
[Annotator "ChessBase"]
[PlyCount "78"]
[EventDate "2021.05.04"]
[EventType "tourn"]
[EventCountry "AZE"]
[SourceTitle "playchess.com"]
[Source "ChessBase"]
[SourceQuality "1"]
[TimeControl "40/5400+30:1800+30"]

1. d4 {[%emt 0:00:00]} d5 {[%emt 0:00:00]} 2. Nf3 {[%emt 0:00:02]} Nf6 {[%emt 0:00:00]} 3. c4 {[%emt 0:00:23]} c6 {[%emt 0:00:00]} 4. e3 {[%emt 0:01:20]} Bf5 {[%emt 0:00:39]} 5. Nc3 {[%emt 0:01:58]} a6 {[%emt 0:00:13]} 6. Bd3 {[%emt 0:04:28]} Bxd3 {[%emt 0:00:23]} 7. Qxd3 {[%emt 0:00:19]} e6 {[%emt 0:00:01]} 8. e4 {[%emt 0:05:34]} Bb4 {[%emt 0:10:33]} 9. e5 {[%emt 0:05:55]} Ne4 {[%emt 0:05:22]} 10. Bd2 {[%emt 0:05:37]} Nxd2 {[%emt 0:08:39]} 11. Nxd2 {[%emt 0:01:04]} c5 {[%emt 0:01:51]} 12. cxd5 {[%emt 0:08:03]} cxd4 {[%emt 0:04:37]} 13. Qxd4 {[%emt 0:01:46]} Nc6 {[%emt 0:00:58]} 14. Qf4 {[%emt 0:09:39]} Bxc3 {[%emt 0:13:29]} 15. dxc6 {[%emt 0:03:39]} g5 {[%emt 0:01:12]} 16. Qe3 {[%emt 0:07:15]} Bxd2+ {[%emt 0:00:47]} 17. Qxd2 {[%emt 0:00:04]} Qxd2+ {[%emt 0:00:07]} 18. Kxd2 {[%emt 0:00:02]} O-O-O+ {[%emt 0:00:08]} 19. Ke3 {[%emt 0:03:35]} bxc6 {[%emt 0:07:26]} 20. Rac1 {[%emt 0:02:52]} Kc7 {[%emt 0:02:00]} 21. Rc5 {[%emt 0:00:55]} Rd5 {[%emt 0:00:16]} 22. Rxd5 {[%emt 0:00:35]} exd5 {[%emt 0:04:28]} 23. h4 {[%emt 0:01:28]} g4 {[%emt 0:02:59]} 24. Kf4 {[%emt 0:04:57]} c5 {[%emt 0:02:21]} 25. Kg5 {[%emt 0:04:04]} Re8 {[%emt 0:01:52]} 26. Kh6 {[%emt 0:01:03]} Rxe5 {[%emt 0:01:58]} 27. h5 {[%emt 0:00:36]} Kd7 {[%emt 0:01:50]} 28. Kxh7 {[%emt 0:04:38]} Ke7 {[%emt 0:00:17]} 29. h6 {[%emt 0:02:18]} d4 {[%emt 0:02:11]} 30. Rd1 {[%emt 0:05:19]} a5 {[%emt 0:06:35]} 31. b3 {[%emt 0:01:56]} Kf6 {[%emt 0:02:42]} 32. g3 {[%emt 0:02:42]} Re6 {[%emt 0:01:59]} 33. Rc1 {[%emt 0:03:08]} Rc6 {[%emt 0:03:02]} 34. a4 {[%emt 0:08:14]} d3 {[%emt 0:01:41]} 35. f3 {[%emt 0:01:12]} gxf3 {[%emt 0:00:57]} 36. Rf1 {[%emt 0:00:11]} Rd6 {[%emt 0:00:38]} 37. Rxf3+ {[%emt 0:00:16]} Kg5 {[%emt 0:00:28]} 38. Rf1 {[%emt 0:01:15]} Rxh6+ {[%emt 0:01:10]} 39. Kg7 {[%emt 0:00:01]} Rd6 {[%emt 0:00:07]} 0-1

[Event "Azerbaijan Championship 2021"]
[Site "Nakhchivan"]
[Date "2021.05.08"]
[Round "5.6"]
[White "Sevdimaliyev, Urfan"]
[Black "Suleymanli, Aydin"]
[Result "0-1"]
[ECO "B12"]
[WhiteElo "2369"]
[BlackElo "2520"]
[Annotator "ChessBase"]
[PlyCount "74"]
[EventDate "2021.05.04"]
[EventType "tourn"]
[EventCountry "AZE"]
[SourceTitle "playchess.com"]
[Source "ChessBase"]
[SourceQuality "1"]
[TimeControl "40/5400+30:1800+30"]

1. e4 {[%emt 0:00:00]} c6 {[%emt 0:00:00]} 2. d4 {[%emt 0:00:00]} d5 {[%emt 0:00:00]} 3. e5 {[%emt 0:00:00]} Bf5 {[%emt 0:00:00]} 4. Nf3 {[%emt 0:00:00]} e6 {[%emt 0:00:06]} 5. Be2 {[%emt 0:00:13]} Ne7 {[%emt 0:00:09]} 6. O-O {[%emt 0:00:37]} Nd7 {[%emt 0:05:17]} 7. Nbd2 {[%emt 0:00:33]} Ng6 {[%emt 0:01:23]} 8. Nb3 {[%emt 0:05:10]} f6 {[%emt 0:00:50]} 9. Ne1 {[%emt 0:08:08]} h5 {[%emt 0:30:37]} 10. f4 {[%emt 0:11:37]} h4 {[%emt 0:02:02]} 11. Bg4 {[%emt 0:06:30]} Ne7 {[%emt 0:01:23]} 12. Nd3 {[%emt 0:03:26]} b6 {[%emt 0:09:49]} 13. a4 {[%emt 0:06:58]} Rc8 {[%emt 0:11:53]} 14. a5 {[%emt 0:13:23]} c5 {[%emt 0:03:35]} 15. axb6 {[%emt 0:07:07]} axb6 {[%emt 0:13:45]} 16. dxc5 {[%emt 0:08:34]} bxc5 {[%emt 0:00:10]} 17. Na5 {[%emt 0:03:56]} c4 {[%emt 0:03:34]} 18. exf6 {[%emt 0:05:07]} Nxf6 {[%emt 0:02:03]} 19. Nf2 {[%emt 0:02:41]} Bxg4 {[%emt 0:00:57]} 20. Nxg4 {[%emt 0:00:14]} Nf5 {[%emt 0:00:03]} 21. Nxf6+ {[%emt 0:05:24]} gxf6 {[%emt 0:00:35]} 22. h3 {[%emt 0:00:54]} Kf7 {[%emt 0:03:20]} 23. Kh2 {[%emt 0:02:29]} Bb4 {[%emt 0:01:03]} 24. Bd2 {[%emt 0:00:41]} Qb6 {[%emt 0:03:31]} 25. Bxb4 {[%emt 0:02:32]} Qxb4 {[%emt 0:00:02]} 26. Qf3 {[%emt 0:02:48]} c3 {[%emt 0:02:35]} 27. Nb3 {[%emt 0:02:43]} cxb2 {[%emt 0:01:11]} 28. Ra7+ {[%emt 0:00:07]} Ne7 {[%emt 0:00:27]} 29. f5 {[%emt 0:01:50]} Qb8+ {[%emt 0:02:14]} 30. Kh1 {[%emt 0:00:01]} Qxa7 {[%emt 0:00:08]} 31. fxe6+ {[%emt 0:00:04]} Kxe6 {[%emt 0:00:07]} 32. Qxf6+ {[%emt 0:00:15]} Kd7 {[%emt 0:00:05]} 33. Nd4 {[%emt 0:00:25]} Rh6 {[%emt 0:02:46]} 34. Qf4 {[%emt 0:01:33]} Qa1 {[%emt 0:00:43]} 35. Nb3 {[%emt 0:00:55]} Qa6 {[%emt 0:00:02]} 36. Qg4+ {[%emt 0:00:29]} Re6 {[%emt 0:00:04]} 37. Re1 {[%emt 0:00:28]} Rc4 {[%emt 0:00:02]} 0-1

[Event "Azerbaijan Championship 2021"]
[Site "Nakhchivan"]
[Date "2021.05.09"]
[Round "6.4"]
[White "Asadli, Vugar"]
[Black "Abbasov, Farid"]
[Result "1-0"]
[ECO "C10"]
[WhiteElo "2572"]
[BlackElo "2528"]
[Annotator "ChessBase"]
[PlyCount "75"]
[EventDate "2021.05.04"]
[EventType "tourn"]
[EventCountry "AZE"]
[SourceTitle "playchess.com"]
[Source "ChessBase"]
[SourceQuality "1"]
[TimeControl "40/5400+30:1800+30"]

1. e4 e6 2. d4 d5 3. Nc3 a6 4. a3 dxe4 5. Nxe4 Nd7 6. Nf3 Ngf6 7. Nxf6+ Nxf6 8. Bd3 c5 9. dxc5 {[%emt 0:23:40]} Bxc5 {[%emt 0:19:37]} 10. b4 {[%emt 0:00:04]} Bd6 {[%emt 0:12:00]} 11. Bb2 {[%emt 0:04:41]} b6 {[%emt 0:06:48]} 12. O-O {[%emt 0:10:30]} Bb7 {[%emt 0:00:42]} 13. Qe2 {[%emt 0:00:27]} Qc7 {[%emt 0:08:42]} 14. Ne5 {[%emt 0:06:01]} O-O {[%emt 0:11:25]} 15. f4 {[%emt 0:05:56]} a5 {[%emt 0:07:00]} 16. b5 {[%emt 0:17:06]} Rfe8 {[%emt 0:17:34]} 17. Nc4 {[%emt 0:04:46]} Bc5+ {[%emt 0:06:46]} 18. Kh1 {[%emt 0:00:01]} Rad8 {[%emt 0:00:01]} 19. Be5 {[%emt 0:03:52]} Qe7 {[%emt 0:00:02]} 20. Rae1 {[%emt 0:00:20]} Nd7 {[%emt 0:03:57]} 21. Bb2 {[%emt 0:02:29]} f5 {[%emt 0:01:43]} 22. Qh5 {[%emt 0:04:40]} Qf7 {[%emt 0:00:40]} 23. Qh3 {[%emt 0:00:40]} Qg6 {[%emt 0:00:30]} 24. Re2 {[%emt 0:00:25]} h5 {[%emt 0:01:18]} 25. Rfe1 {[%emt 0:01:11]} Kf7 {[%emt 0:01:16]} 26. Re3 {[%emt 0:01:48]} Bxe3 {[%emt 0:00:24]} 27. Rxe3 {[%emt 0:00:33]} Qg4 {[%emt 0:02:15]} 28. Nd6+ {[%emt 0:00:28]} Kf8 {[%emt 0:00:37]} 29. Qxg4 {[%emt 0:00:39]} hxg4 {[%emt 0:00:02]} 30. Nxb7 {[%emt 0:00:05]} Rb8 {[%emt 0:00:03]} 31. Nd6 {[%emt 0:00:31]} Re7 {[%emt 0:00:02]} 32. a4 {[%emt 0:01:19]} g6 {[%emt 0:01:36]} 33. Ba3 {[%emt 0:00:32]} Kg8 {[%emt 0:00:55]} 34. Nxf5 {[%emt 0:00:19]} Rh7 {[%emt 0:00:10]} 35. Ne7+ {[%emt 0:00:28]} Kg7 {[%emt 0:00:02]} 36. Nxg6 {[%emt 0:00:32]} Nc5 {[%emt 0:00:42]} 37. Bxc5 {[%emt 0:00:29]} bxc5 {[%emt 0:00:02]} 38. Rxe6 {[%emt 0:00:11]} 1-0

[Event "Azerbaijan Championship 2021"]
[Site "Nakhchivan"]
[Date "2021.05.09"]
[Round "6.5"]
[White "Safarli, Eltaj"]
[Black "Muradli, Mahammad"]
[Result "1-0"]
[ECO "B90"]
[WhiteElo "2598"]
[BlackElo "2449"]
[Annotator "ChessBase"]
[PlyCount "55"]
[EventDate "2021.05.04"]
[EventType "tourn"]
[EventCountry "AZE"]
[SourceTitle "playchess.com"]
[Source "ChessBase"]
[SourceQuality "1"]
[TimeControl "40/5400+30:1800+30"]

1. e4 {[%emt 0:00:00]} c5 {[%emt 0:05:11]} 2. Nf3 {[%emt 0:00:00]} d6 {[%emt 0:00:05]} 3. d4 {[%emt 0:00:00]} cxd4 {[%emt 0:00:04]} 4. Nxd4 {[%emt 0:00:00]} Nf6 {[%emt 0:00:07]} 5. Nc3 {[%emt 0:00:00]} a6 {[%emt 0:00:03]} 6. Be3 {[%emt 0:00:18]} e5 {[%emt 0:00:05]} 7. Nf3 {[%emt 0:00:16]} Qc7 {[%emt 0:00:05]} 8. a4 {[%emt 0:00:30]} Be6 {[%emt 0:01:54]} 9. Be2 {[%emt 0:00:56]} h6 {[%emt 0:00:10]} 10. O-O {[%emt 0:00:29]} Nbd7 {[%emt 0:00:37]} 11. Ne1 {[%emt 0:00:43]} Qc6 {[%emt 0:15:43]} 12. Nd3 {[%emt 0:00:31]} d5 {[%emt 0:04:48]} 13. exd5 {[%emt 0:01:08]} Nxd5 {[%emt 0:00:32]} 14. Nxd5 {[%emt 0:02:02]} Bxd5 {[%emt 0:00:43]} 15. Bg4 {[%emt 0:00:48]} Be6 {[%emt 0:13:38]} 16. Re1 {[%emt 0:03:54]} Be7 {[%emt 0:05:19]} 17. Bxe6 {[%emt 0:06:41]} Qxe6 {[%emt 0:00:17]} 18. Nf4 {[%emt 0:00:40]} Qc6 {[%emt 0:11:04]} 19. Nd5 {[%emt 0:01:14]} Bd8 {[%emt 0:01:25]} 20. Bf4 {[%emt 0:08:46]} Bf6 {[%emt 0:10:31]} 21. Ra3 {[%emt 0:13:48]} Rd8 {[%emt 0:03:29]} 22. Rc3 {[%emt 0:06:33]} Qxa4 {[%emt 0:00:23]} 23. b3 {[%emt 0:09:24]} Qa5 {[%emt 0:02:13]} 24. b4 {[%emt 0:02:03]} Qa4 {[%emt 0:02:56]} 25. Rd3 {[%emt 0:01:22]} Rc8 {[%emt 0:08:04]} 26. Qg4 {[%emt 0:08:56]} Qxc2 {[%emt 0:05:42]} 27. Nxf6+ {[%emt 0:01:43]} Nxf6 {[%emt 0:00:14]} 28. Qxg7 {[%emt 0:00:41]} 1-0

[Event "Azerbaijan Championship 2021"]
[Site "Nakhchivan"]
[Date "2021.05.09"]
[Round "6.6"]
[White "Sevdimaliyev, Urfan"]
[Black "Garayev, Kanan"]
[Result "1-0"]
[ECO "D03"]
[WhiteElo "2369"]
[BlackElo "2331"]
[Annotator "NA"]
[PlyCount "143"]
[EventDate "2021.05.04"]
[EventType "tourn"]
[EventCountry "AZE"]
[SourceTitle "playchess.com"]
[Source "ChessBase"]
[SourceQuality "1"]
[TimeControl "40/5400+30:1800+30"]

1. d4 {[%emt 0:00:00]} Nf6 {[%emt 0:04:18]} 2. Nf3 {[%emt 0:00:00]} d5 {[%emt 0:00:53]} 3. Bg5 {[%emt 0:00:39]} Ne4 {[%emt 0:01:46]} 4. Bh4 {[%emt 0:05:01]} Qd6 {[%emt 0:03:15]} 5. Nbd2 {[%emt 0:02:46]} Qh6 {[%emt 0:00:13]} 6. Qc1 {[%emt 0:01:18]} Nc6 {[%emt 0:09:04]} 7. c3 {[%emt 0:05:23]} Bf5 {[%emt 0:19:26]} 8. Nxe4 {[%emt 0:04:21]} Qxc1+ {[%emt 0:03:08]} 9. Rxc1 {[%emt 0:00:04]} Bxe4 {[%emt 0:00:52]} 10. e3 {[%emt 0:01:36]} f6 {[%emt 0:04:42]} 11. Nd2 {[%emt 0:19:42]} Bf5 {[%emt 0:01:31]} 12. f3 {[%emt 0:02:25]} e6 {[%emt 0:01:51]} 13. Bf2 {[%emt 0:08:20]} g5 {[%emt 0:05:23]} 14. h4 {[%emt 0:11:11]} h5 {[%emt 0:01:21]} 15. hxg5 {[%emt 0:06:30]} fxg5 {[%emt 0:00:11]} 16. g4 {[%emt 0:01:22]} Bg6 {[%emt 0:00:10]} 17. gxh5 {[%emt 0:00:42]} Bxh5 {[%emt 0:09:45]} 18. Bh3 {[%emt 0:01:23]} Bf7 {[%emt 0:03:02]} 19. e4 {[%emt 0:02:43]} Bd6 {[%emt 0:05:38]} 20. Be3 {[%emt 0:03:17]} Bf4 {[%emt 0:01:26]} 21. Bxf4 {[%emt 0:01:44]} gxf4 {[%emt 0:01:39]} 22. Kf2 {[%emt 0:00:04]} Ke7 {[%emt 0:02:50]} 23. Rce1 {[%emt 0:00:44]} Kf6 {[%emt 0:00:51]} 24. e5+ {[%emt 0:01:49]} Ke7 {[%emt 0:00:11]} 25. Bg4 {[%emt 0:01:45]} a5 {[%emt 0:04:00]} 26. Nb3 {[%emt 0:02:34]} a4 {[%emt 0:04:54]} 27. Nc5 {[%emt 0:03:34]} Na5 {[%emt 0:00:10]} 28. Rxh8 {[%emt 0:05:56]} Rxh8 {[%emt 0:00:01]} 29. Kg1 {[%emt 0:01:00]} Nc4 {[%emt 0:01:23]} 30. Nd3 {[%emt 0:00:30]} Rg8 {[%emt 0:01:51]} 31. Kf2 {[%emt 0:01:07]} Rh8 {[%emt 0:01:58]} 32. Kg1 {[%emt 0:01:41]} b6 {[%emt 0:01:36]} 33. Re2 {[%emt 0:00:50]} a3 {[%emt 0:05:11]} 34. b3 {[%emt 0:00:30]} Ne3 {[%emt 0:00:40]} 35. Nxf4 {[%emt 0:00:37]} Nxg4 {[%emt 0:00:56]} 36. fxg4 {[%emt 0:00:04]} Rg8 {[%emt 0:00:27]} 37. Rg2 {[%emt 0:00:06]} c5 {[%emt 0:00:36]} 38. g5 {[%emt 0:01:13]} cxd4 {[%emt 0:00:01]} 39. cxd4 {[%emt 0:00:07]} Bg6 {[%emt 0:01:22]} 40. Nxg6+ {[%emt 0:00:00]} Rxg6 {[%emt 0:00:00]} 41. Kf2 {[%emt 0:04:14]} Rg8 {[%emt 0:01:34]} 42. Ke3 {[%emt 0:06:02]} Kf7 {[%emt 0:11:48]} 43. Rf2+ {[%emt 0:12:32]} Kg6 {[%emt 0:00:37]} 44. Rf6+ {[%emt 0:01:27]} Kxg5 {[%emt 0:00:02]} 45. Rxe6 {[%emt 0:00:10]} Rh8 {[%emt 0:01:14]} 46. Rf6 {[%emt 0:01:09]} Rh3+ {[%emt 0:02:01]} 47. Rf3 {[%emt 0:00:34]} Rh2 {[%emt 0:02:53]} 48. Rf2 {[%emt 0:00:32]} Rh1 {[%emt 0:05:39]} 49. Kd2 {[%emt 0:00:49]} Ra1 {[%emt 0:01:11]} 50. Kc3 {[%emt 0:02:04]} Rc1+ {[%emt 0:00:59]} 51. Rc2 {[%emt 0:02:55]} Re1 {[%emt 0:02:24]} 52. Kb4 {[%emt 0:03:03]} Re4 {[%emt 0:00:14]} 53. Kxa3 {[%emt 0:03:09]} Rxd4 {[%emt 0:00:45]} 54. Rc6 {[%emt 0:00:10]} b5 {[%emt 0:00:47]} 55. Rb6 {[%emt 0:00:33]} Kf5 {[%emt 0:00:20]} 56. e6 {[%emt 0:00:29]} Re4 {[%emt 0:01:05]} 57. Rxb5 {[%emt 0:00:31]} Kxe6 {[%emt 0:00:01]} 58. Rb8 {[%emt 0:01:27]} Ke5 {[%emt 0:01:49]} 59. b4 {[%emt 0:00:17]} d4 {[%emt 0:01:11]} 60. Rd8 {[%emt 0:00:24]} Re3+ {[%emt 0:02:26]} 61. Ka4 {[%emt 0:01:16]} d3 {[%emt 0:00:03]} 62. Ka5 {[%emt 0:01:28]} Re2 {[%emt 0:02:50]} 63. Rxd3 {[%emt 0:00:30]} Rxa2+ {[%emt 0:00:01]} 64. Kb6 {[%emt 0:00:05]} Ra8 {[%emt 0:00:05]} 65. b5 {[%emt 0:00:07]} Rb8+ {[%emt 0:00:22]} 66. Kc6 {[%emt 0:00:03]} Rc8+ {[%emt 0:00:10]} 67. Kb7 {[%emt 0:00:06]} Rc1 {[%emt 0:00:11]} 68. b6 {[%emt 0:00:04]} Ke6 {[%emt 0:00:07]} 69. Ka8 {[%emt 0:00:08]} Rb1 {[%emt 0:00:08]} 70. b7 {[%emt 0:00:05]} Ra1+ {[%emt 0:00:02]} 71. Kb8 {[%emt 0:00:03]} Ra2 {[%emt 0:00:25]} 72. Rd4 {[%emt 0:00:07]} 1-0

[Event "Azerbaijan Championship 2021"]
[Site "Nakhchivan"]
[Date "2021.05.10"]
[Round "7.2"]
[White "Iskandarov, Misratdin"]
[Black "Asadli, Vugar"]
[Result "1/2-1/2"]
[ECO "B10"]
[WhiteElo "2535"]
[BlackElo "2572"]
[Annotator "ChessBase"]
[PlyCount "73"]
[EventDate "2021.05.04"]
[EventType "tourn"]
[EventCountry "AZE"]
[SourceTitle "playchess.com"]
[Source "ChessBase"]
[SourceQuality "1"]
[TimeControl "40/5400+30:1800+30"]

1. e4 {[%emt 0:00:00]} c6 {[%emt 0:00:00]} 2. Nc3 {[%emt 0:00:00]} d5 {[%emt 0:00:08]} 3. Nf3 {[%emt 0:00:58]} dxe4 {[%emt 0:00:34]} 4. Nxe4 {[%emt 0:00:07]} Nf6 {[%emt 0:00:11]} 5. Nxf6+ {[%emt 0:01:42]} exf6 {[%emt 0:00:41]} 6. d4 {[%emt 0:00:05]} Bd6 {[%emt 0:02:18]} 7. Bd3 {[%emt 0:00:10]} O-O {[%emt 0:01:49]} 8. O-O {[%emt 0:00:45]} Na6 {[%emt 0:03:04]} 9. c3 {[%emt 0:02:31]} Bg4 {[%emt 0:07:38]} 10. h3 {[%emt 0:00:12]} Bh5 {[%emt 0:00:32]} 11. Be4 {[%emt 0:00:14]} Re8 {[%emt 0:04:56]} 12. Qd3 {[%emt 0:03:56]} Bg6 {[%emt 0:01:34]} 13. Bxg6 {[%emt 0:00:08]} hxg6 {[%emt 0:00:07]} 14. b4 {[%emt 0:02:26]} Nc7 {[%emt 0:08:04]} 15. a4 {[%emt 0:08:15]} Qd7 {[%emt 0:01:44]} 16. Bd2 {[%emt 0:00:54]} a6 {[%emt 0:08:48]} 17. c4 {[%emt 0:05:41]} Rad8 {[%emt 0:02:25]} 18. a5 {[%emt 0:18:11]} g5 {[%emt 0:07:33]} 19. Rfe1 {[%emt 0:02:36]} g4 {[%emt 0:00:14]} 20. hxg4 {[%emt 0:00:07]} Qxg4 {[%emt 0:00:03]} 21. Rxe8+ {[%emt 0:00:19]} Rxe8 {[%emt 0:00:03]} 22. Re1 {[%emt 0:01:06]} Rxe1+ {[%emt 0:02:33]} 23. Bxe1 {[%emt 0:03:35]} Ne6 {[%emt 0:00:55]} 24. Bd2 {[%emt 0:00:37]} f5 {[%emt 0:00:47]} 25. d5 {[%emt 0:21:32]} Qe4 {[%emt 0:05:23]} 26. Qxe4 {[%emt 0:01:24]} fxe4 {[%emt 0:00:25]} 27. dxe6 {[%emt 0:00:35]} exf3 {[%emt 0:00:08]} 28. exf7+ {[%emt 0:06:11]} Kxf7 {[%emt 0:00:04]} 29. gxf3 {[%emt 0:00:09]} Ke6 {[%emt 0:00:05]} 30. Kf1 {[%emt 0:00:06]} Kf5 {[%emt 0:00:07]} 31. Ke2 {[%emt 0:00:05]} Be7 {[%emt 0:00:06]} 32. Bc3 {[%emt 0:00:13]} g6 {[%emt 0:00:04]} 33. Bd2 {[%emt 0:00:10]} Bd6 {[%emt 0:00:04]} 34. Bc3 {[%emt 0:00:06]} Be7 {[%emt 0:00:03]} 35. Bd2 {[%emt 0:00:07]} Bd6 {[%emt 0:00:05]} 36. Bc3 {[%emt 0:00:05]} Be7 {[%emt 0:00:09]} 37. Bd2 {[%emt 0:01:10]} 1/2-1/2